[Event "Early-Titled-Tuesday-Blitz-June-18-2024"]
[Site "Chess.com"]
[Date "2024.06.18"]
[Round "7"]
[White "Chessbard1972"]
[Black "N18player"]
[Result "1-0"]
[WhiteElo "2263"]
[BlackElo "2528"]
[TimeControl "180+1"]
[EndTime "9:17:29 PDT"]
[Termination "Chessbard1972 won by checkmate"]

1. e4 {[%clk 0:03:00.9]} 1... g6 {[%clk 0:02:59.3]} 2. d4 {[%clk 0:03:00]} 2...
Bg7 {[%clk 0:02:59.7]} 3. Nc3 {[%clk 0:03:00.2]} 3... d6 {[%clk 0:02:59.2]} 4.
Be3 {[%clk 0:02:58.8]} 4... a6 {[%clk 0:02:54.8]} 5. a4 {[%clk 0:02:58.3]} 5...
Nd7 {[%clk 0:02:48]} 6. Bc4 {[%clk 0:02:56]} 6... e6 {[%clk 0:02:44.6]} 7. Nge2
{[%clk 0:02:52.7]} 7... Ne7 {[%clk 0:02:44.1]} 8. Qd2 {[%clk 0:02:51.8]} 8... b6
{[%clk 0:02:38.4]} 9. Bh6 {[%clk 0:02:49.4]} 9... O-O {[%clk 0:02:30.3]} 10. h4
{[%clk 0:02:48.5]} 10... Nf6 {[%clk 0:02:15.5]} 11. h5 {[%clk 0:02:39.3]} 11...
d5 {[%clk 0:01:48.3]} 12. Bd3 {[%clk 0:02:29.4]} 12... Nxh5 {[%clk 0:00:47.6]}
13. g4 {[%clk 0:02:23.3]} 13... Nf6 {[%clk 0:00:44.6]} 14. Bxg7 {[%clk
0:02:22.5]} 14... Kxg7 {[%clk 0:00:45.2]} 15. Qh6+ {[%clk 0:02:21.4]} 15... Kh8
{[%clk 0:00:37]} 16. e5 {[%clk 0:02:20.5]} 16... Neg8 {[%clk 0:00:37.6]} 17. Qh4
{[%clk 0:02:12]} 17... Kg7 {[%clk 0:00:34.1]} 18. exf6+ {[%clk 0:02:06.4]} 18...
Nxf6 {[%clk 0:00:33.7]} 19. Qh6+ {[%clk 0:01:57.9]} 19... Kg8 {[%clk 0:00:25.9]}
20. g5 {[%clk 0:01:57.4]} 20... Nh5 {[%clk 0:00:23.5]} 21. Rxh5 {[%clk
0:01:56.9]} 21... gxh5 {[%clk 0:00:20.3]} 22. Qxh7# {[%clk 0:01:56.6]} 1-0

[Event "Early-Titled-Tuesday-Blitz-June-18-2024"]
[Site "Chess.com"]
[Date "2024.06.18"]
[Round "7"]
[White "Defenstrator"]
[Black "CMButgood"]
[Result "1-0"]
[WhiteElo "2385"]
[BlackElo "2017"]
[TimeControl "180+1"]
[EndTime "9:17:31 PDT"]
[Termination "Defenstrator won by resignation"]

1. f4 {[%clk 0:02:57.9]} 1... e5 {[%clk 0:02:59.3]} 2. fxe5 {[%clk 0:02:56.2]}
2... d6 {[%clk 0:02:59.9]} 3. exd6 {[%clk 0:02:57.1]} 3... Bxd6 {[%clk
0:03:00.5]} 4. Nf3 {[%clk 0:02:57.8]} 4... g5 {[%clk 0:03:01]} 5. g3 {[%clk
0:02:58.6]} 5... g4 {[%clk 0:02:55.6]} 6. Nh4 {[%clk 0:02:59.3]} 6... Nf6 {[%clk
0:02:42.8]} 7. Bg2 {[%clk 0:02:49.6]} 7... Be6 {[%clk 0:02:37.8]} 8. O-O {[%clk
0:02:42.1]} 8... c6 {[%clk 0:02:29.9]} 9. d4 {[%clk 0:02:30.5]} 9... Nbd7 {[%clk
0:02:23.4]} 10. e4 {[%clk 0:02:30.4]} 10... Be7 {[%clk 0:02:23.9]} 11. Nc3
{[%clk 0:02:18.5]} 11... Qb6 {[%clk 0:02:23]} 12. Kh1 {[%clk 0:02:00.4]} 12...
O-O-O {[%clk 0:02:21.6]} 13. a4 {[%clk 0:01:51.3]} 13... Ne5 {[%clk 0:02:19]}
14. a5 {[%clk 0:01:45.7]} 14... Qxd4 {[%clk 0:02:17.5]} 15. Qe2 {[%clk
0:01:44.7]} 15... Bc4 {[%clk 0:02:16.7]} 16. Qe1 {[%clk 0:01:31.9]} 16... Bxf1
{[%clk 0:02:14.5]} 17. Qxf1 {[%clk 0:01:25.3]} 17... Nc4 {[%clk 0:01:58.7]} 18.
Nf5 {[%clk 0:01:19.7]} 18... Qd7 {[%clk 0:01:51.8]} 19. Qxc4 {[%clk 0:01:13]}
19... h5 {[%clk 0:01:40.8]} 20. a6 {[%clk 0:01:09.7]} 20... b5 {[%clk
0:01:25.5]} 21. Nxe7+ {[%clk 0:01:04]} 21... Qxe7 {[%clk 0:01:22.1]} 22. Qxc6+
{[%clk 0:01:04.1]} 1-0

[Event "Early-Titled-Tuesday-Blitz-June-18-2024"]
[Site "Chess.com"]
[Date "2024.06.18"]
[Round "7"]
[White "harkerchess"]
[Black "Moon_stone123"]
[Result "0-1"]
[WhiteElo "2356"]
[BlackElo "2600"]
[TimeControl "180+1"]
[EndTime "9:17:33 PDT"]
[Termination "Moon_stone123 won by resignation"]

1. d4 {[%clk 0:03:00.9]} 1... c5 {[%clk 0:02:54.2]} 2. dxc5 {[%clk 0:02:59.5]}
2... e6 {[%clk 0:02:54.1]} 3. Nc3 {[%clk 0:02:55.1]} 3... Bxc5 {[%clk
0:02:51.8]} 4. Ne4 {[%clk 0:02:54]} 4... d5 {[%clk 0:02:51.8]} 5. Nxc5 {[%clk
0:02:52.4]} 5... Qa5+ {[%clk 0:02:52.5]} 6. c3 {[%clk 0:02:49.1]} 6... Qxc5
{[%clk 0:02:53.1]} 7. Nf3 {[%clk 0:02:44.6]} 7... Nf6 {[%clk 0:02:53.7]} 8. Bf4
{[%clk 0:02:41.6]} 8... O-O {[%clk 0:02:53.7]} 9. h3 {[%clk 0:02:37.8]} 9... Nc6
{[%clk 0:02:54.2]} 10. e3 {[%clk 0:02:36.9]} 10... Qe7 {[%clk 0:02:54.7]} 11.
Ne5 {[%clk 0:02:35.4]} 11... Nxe5 {[%clk 0:02:54.5]} 12. Bxe5 {[%clk 0:02:36.3]}
12... Nd7 {[%clk 0:02:55.2]} 13. Bg3 {[%clk 0:02:35.2]} 13... b6 {[%clk
0:02:54.3]} 14. Bd3 {[%clk 0:02:34.5]} 14... Bb7 {[%clk 0:02:54.4]} 15. O-O
{[%clk 0:02:32.4]} 15... e5 {[%clk 0:02:54.5]} 16. Bc2 {[%clk 0:02:30.8]} 16...
Nf6 {[%clk 0:02:54.3]} 17. Bb3 {[%clk 0:02:13.4]} 17... Rad8 {[%clk 0:02:54.6]}
18. Bh4 {[%clk 0:01:54.2]} 18... h6 {[%clk 0:02:55.1]} 19. Qf3 {[%clk
0:01:51.8]} 19... g5 {[%clk 0:02:54.9]} 20. Bg3 {[%clk 0:01:51.1]} 20... Ne4
{[%clk 0:02:54.1]} 21. Rad1 {[%clk 0:01:45.4]} 21... f5 {[%clk 0:02:52.7]} 22.
Bh2 {[%clk 0:01:43.5]} 22... Kg7 {[%clk 0:02:50.7]} 23. Qe2 {[%clk 0:01:40.9]}
23... Nc5 {[%clk 0:02:45.7]} 24. Bc2 {[%clk 0:01:39.9]} 24... Ba6 {[%clk
0:02:45.5]} 25. Qf3 {[%clk 0:01:34.5]} 25... Bxf1 {[%clk 0:02:45.9]} 26. Kxf1
{[%clk 0:01:33.4]} 26... Ne4 {[%clk 0:02:46.2]} 27. Qe2 {[%clk 0:01:28.6]} 27...
Nf6 {[%clk 0:02:46.2]} 28. Bxf5 {[%clk 0:01:27.6]} 28... e4 {[%clk 0:02:46.1]}
29. c4 {[%clk 0:01:21]} 29... dxc4 {[%clk 0:02:45.6]} 30. Rc1 {[%clk 0:01:17]}
30... b5 {[%clk 0:02:44.9]} 31. g4 {[%clk 0:01:12.5]} 31... Rd5 {[%clk
0:02:45.2]} 32. a4 {[%clk 0:01:09.4]} 32... a6 {[%clk 0:02:43.8]} 33. axb5
{[%clk 0:01:08.6]} 33... axb5 {[%clk 0:02:44.7]} 34. b3 {[%clk 0:01:08.8]} 34...
Rfd8 {[%clk 0:02:39.4]} 35. bxc4 {[%clk 0:01:07.7]} 35... Rd2 {[%clk 0:02:40]}
36. Qe1 {[%clk 0:01:06.6]} 36... b4 {[%clk 0:02:40.6]} 37. c5 {[%clk 0:01:04.7]}
37... b3 {[%clk 0:02:40.9]} 38. Bd6 {[%clk 0:01:04.4]} 38... R8xd6 {[%clk
0:02:34.5]} 39. cxd6 {[%clk 0:01:04.2]} 39... Qxd6 {[%clk 0:02:35.4]} 40. Rb1
{[%clk 0:01:01.2]} 40... b2 {[%clk 0:02:35.3]} 41. Kg2 {[%clk 0:00:58.8]} 41...
Qd3 {[%clk 0:02:35.1]} 42. Qf1 {[%clk 0:00:41.7]} 42... Qxe3 {[%clk 0:02:34]}
43. Rd1 {[%clk 0:00:35.3]} 43... Qf3+ {[%clk 0:02:34]} 0-1

[Event "Early-Titled-Tuesday-Blitz-June-18-2024"]
[Site "Chess.com"]
[Date "2024.06.18"]
[Round "7"]
[White "Zampronha1971"]
[Black "ilovejokes555"]
[Result "1-0"]
[WhiteElo "2402"]
[BlackElo "2203"]
[TimeControl "180+1"]
[EndTime "9:17:37 PDT"]
[Termination "Zampronha1971 won by resignation"]

1. e4 {[%clk 0:02:55.6]} 1... c5 {[%clk 0:02:59.8]} 2. Nf3 {[%clk 0:02:55.1]}
2... d6 {[%clk 0:02:59.9]} 3. d4 {[%clk 0:02:55.6]} 3... cxd4 {[%clk 0:03:00.3]}
4. Nxd4 {[%clk 0:02:56.4]} 4... Nf6 {[%clk 0:03:01]} 5. Nc3 {[%clk 0:02:56.6]}
5... a6 {[%clk 0:03:01.8]} 6. Bg5 {[%clk 0:02:56.5]} 6... e6 {[%clk 0:03:01.9]}
7. f4 {[%clk 0:02:54.3]} 7... Be7 {[%clk 0:03:00.5]} 8. Qf3 {[%clk 0:02:52.7]}
8... Nbd7 {[%clk 0:03:00.4]} 9. O-O-O {[%clk 0:02:50.5]} 9... Qc7 {[%clk
0:03:00.7]} 10. Bd3 {[%clk 0:02:49.4]} 10... b5 {[%clk 0:03:00.7]} 11. Rhe1
{[%clk 0:02:46.4]} 11... Bb7 {[%clk 0:03:00.9]} 12. Qg3 {[%clk 0:02:45.8]} 12...
Rc8 {[%clk 0:02:59.1]} 13. e5 {[%clk 0:02:42.4]} 13... dxe5 {[%clk 0:02:42.2]}
14. fxe5 {[%clk 0:02:42]} 14... Nh5 {[%clk 0:02:37.8]} 15. Qh4 {[%clk
0:02:41.9]} 15... Bxg5+ {[%clk 0:02:34.3]} 16. Qxg5 {[%clk 0:02:42.8]} 16... g6
{[%clk 0:02:34.5]} 17. Bxb5 {[%clk 0:02:37.2]} 17... axb5 {[%clk 0:02:15.5]} 18.
Ndxb5 {[%clk 0:02:37.1]} 18... Qc6 {[%clk 0:02:04.3]} 19. Nd6+ {[%clk
0:02:37.3]} 19... Kf8 {[%clk 0:02:04.3]} 20. Nxc8 {[%clk 0:02:36.9]} 20... Bxc8
{[%clk 0:01:57.9]} 21. g4 {[%clk 0:02:24.4]} 21... h6 {[%clk 0:01:51]} 22. Qd8+
{[%clk 0:02:00.8]} 22... Kg7 {[%clk 0:01:50.7]} 23. Qe7 {[%clk 0:02:01.5]} 23...
Nf4 {[%clk 0:01:32.2]} 24. Rxd7 {[%clk 0:01:53.1]} 24... Qxd7 {[%clk 0:01:32.3]}
25. Qf6+ {[%clk 0:01:53.3]} 25... Kh7 {[%clk 0:01:33.1]} 26. Qxf4 {[%clk
0:01:53.4]} 26... Rd8 {[%clk 0:01:33.8]} 27. Rf1 {[%clk 0:01:40.4]} 27... Kg7
{[%clk 0:01:29.2]} 28. h4 {[%clk 0:01:30.9]} 28... Ba6 {[%clk 0:01:28.9]} 29.
Qf6+ {[%clk 0:01:20.6]} 29... Kg8 {[%clk 0:01:27.8]} 30. Rd1 {[%clk 0:01:20.3]}
1-0

[Event "Early-Titled-Tuesday-Blitz-June-18-2024"]
[Site "Chess.com"]
[Date "2024.06.18"]
[Round "7"]
[White "Hirna2005"]
[Black "AjedrezInteligente"]
[Result "0-1"]
[WhiteElo "2292"]
[BlackElo "2426"]
[TimeControl "180+1"]
[EndTime "9:17:49 PDT"]
[Termination "AjedrezInteligente won by resignation"]

1. e4 {[%clk 0:03:00.9]} 1... c6 {[%clk 0:02:59.7]} 2. Nc3 {[%clk 0:03:00.1]}
2... d5 {[%clk 0:03:00.6]} 3. Nf3 {[%clk 0:02:59.4]} 3... dxe4 {[%clk 0:03:01]}
4. Nxe4 {[%clk 0:02:59.1]} 4... Nf6 {[%clk 0:03:01.9]} 5. Qe2 {[%clk 0:02:59.1]}
5... Nxe4 {[%clk 0:03:02]} 6. Qxe4 {[%clk 0:02:59.1]} 6... Nd7 {[%clk
0:03:02.6]} 7. Bc4 {[%clk 0:02:59.3]} 7... Nf6 {[%clk 0:03:02.8]} 8. Ne5 {[%clk
0:02:59.5]} 8... e6 {[%clk 0:03:02]} 9. Qe2 {[%clk 0:02:59.4]} 9... Bd6 {[%clk
0:02:59.9]} 10. d4 {[%clk 0:02:59]} 10... Qc7 {[%clk 0:02:59.7]} 11. O-O {[%clk
0:02:57.6]} 11... O-O {[%clk 0:02:58.9]} 12. Re1 {[%clk 0:02:56.7]} 12... a6
{[%clk 0:02:58.3]} 13. Bg5 {[%clk 0:02:55]} 13... b5 {[%clk 0:02:49.1]} 14. Bd3
{[%clk 0:02:24.5]} 14... Bxe5 {[%clk 0:02:35.8]} 15. dxe5 {[%clk 0:02:20.3]}
15... Nd5 {[%clk 0:02:35.2]} 16. Qh5 {[%clk 0:02:11.7]} 16... h6 {[%clk
0:02:34]} 17. Re4 {[%clk 0:02:04.7]} 17... f5 {[%clk 0:02:22.4]} 18. exf6 {[%clk
0:01:56.9]} 18... Nxf6 {[%clk 0:02:19.8]} 19. Bxf6 {[%clk 0:01:55.1]} 19... Rxf6
{[%clk 0:02:20.7]} 20. Rg4 {[%clk 0:01:51.1]} 20... Bd7 {[%clk 0:02:17.3]} 21.
Re1 {[%clk 0:01:45.9]} 21... Raf8 {[%clk 0:02:17.5]} 22. Rg6 {[%clk 0:01:34.5]}
22... Be8 {[%clk 0:02:06.4]} 23. Qg4 {[%clk 0:01:10.2]} 23... Bxg6 {[%clk
0:02:03.2]} 24. Bxg6 {[%clk 0:01:09.7]} 24... Qb6 {[%clk 0:01:53.5]} 25. Re2
{[%clk 0:00:41.6]} 25... Rxf2 {[%clk 0:01:50.5]} 26. Qxe6+ {[%clk 0:00:38.7]}
26... Kh8 {[%clk 0:01:51.1]} 27. Bf5 {[%clk 0:00:25.2]} 27... Rxe2+ {[%clk
0:01:44.9]} 0-1

[Event "Early-Titled-Tuesday-Blitz-June-18-2024"]
[Site "Chess.com"]
[Date "2024.06.18"]
[Round "7"]
[White "SujanaLohani"]
[Black "maracayo"]
[Result "0-1"]
[WhiteElo "2257"]
[BlackElo "2413"]
[TimeControl "180+1"]
[EndTime "9:17:59 PDT"]
[Termination "maracayo won by checkmate"]

1. e4 {[%clk 0:03:00.9]} 1... d6 {[%clk 0:02:59.7]} 2. d4 {[%clk 0:02:59.3]}
2... Nf6 {[%clk 0:02:59.7]} 3. Nc3 {[%clk 0:02:58.3]} 3... c6 {[%clk 0:02:59.9]}
4. Nf3 {[%clk 0:02:57.6]} 4... Qa5 {[%clk 0:02:59.8]} 5. Bd3 {[%clk 0:02:54.7]}
5... e5 {[%clk 0:02:59.4]} 6. Bd2 {[%clk 0:02:50.5]} 6... Nbd7 {[%clk
0:02:57.6]} 7. O-O {[%clk 0:02:48.6]} 7... Qc7 {[%clk 0:02:56.4]} 8. Qe2 {[%clk
0:02:47.9]} 8... Be7 {[%clk 0:02:56]} 9. Nd1 {[%clk 0:02:46.1]} 9... b5 {[%clk
0:02:55]} 10. a4 {[%clk 0:02:44.9]} 10... bxa4 {[%clk 0:02:46.6]} 11. Rxa4
{[%clk 0:02:42.9]} 11... O-O {[%clk 0:02:46.3]} 12. Ne3 {[%clk 0:02:40.1]} 12...
Re8 {[%clk 0:02:43.7]} 13. Nf5 {[%clk 0:02:39.2]} 13... Bf8 {[%clk 0:02:43.5]}
14. Rfa1 {[%clk 0:02:35.2]} 14... Nb6 {[%clk 0:02:40.2]} 15. Ba5 {[%clk
0:02:31.9]} 15... Bxf5 {[%clk 0:02:37.8]} 16. dxe5 {[%clk 0:02:29.1]} 16... dxe5
{[%clk 0:02:09.3]} 17. exf5 {[%clk 0:02:28.8]} 17... Rad8 {[%clk 0:01:48.6]} 18.
Nd2 {[%clk 0:02:25.4]} 18... Nfd5 {[%clk 0:01:40.2]} 19. g3 {[%clk 0:02:17.5]}
19... f6 {[%clk 0:01:36.7]} 20. Nc4 {[%clk 0:02:14.2]} 20... Qc8 {[%clk
0:01:19.3]} 21. R4a2 {[%clk 0:02:08.7]} 21... Kh8 {[%clk 0:00:48]} 22. Be4
{[%clk 0:02:06.3]} 22... Bc5 {[%clk 0:00:42.1]} 23. c3 {[%clk 0:02:04.3]} 23...
Rd7 {[%clk 0:00:37.5]} 24. Rd1 {[%clk 0:01:47.9]} 24... Nxc4 {[%clk 0:00:31]}
25. Qxc4 {[%clk 0:01:37.7]} 25... Ne3 {[%clk 0:00:26.4]} 26. Qxc5 {[%clk
0:01:35]} 26... Rxd1# {[%clk 0:00:25.8]} 0-1

[Event "Early-Titled-Tuesday-Blitz-June-18-2024"]
[Site "Chess.com"]
[Date "2024.06.18"]
[Round "7"]
[White "Resignify"]
[Black "CFalcons8"]
[Result "0-1"]
[WhiteElo "2302"]
[BlackElo "2447"]
[TimeControl "180+1"]
[EndTime "9:18:10 PDT"]
[Termination "CFalcons8 won by resignation"]

1. e4 {[%clk 0:03:00.9]} 1... c5 {[%clk 0:02:58.6]} 2. Nc3 {[%clk 0:02:59.9]}
2... d6 {[%clk 0:02:58.7]} 3. g3 {[%clk 0:03:00.3]} 3... Nf6 {[%clk 0:02:58.5]}
4. Bg2 {[%clk 0:03:00.7]} 4... g6 {[%clk 0:02:57.4]} 5. d3 {[%clk 0:03:00.7]}
5... Bg7 {[%clk 0:02:57.6]} 6. f4 {[%clk 0:03:01.3]} 6... Nbd7 {[%clk
0:02:56.3]} 7. Nf3 {[%clk 0:03:01]} 7... Rb8 {[%clk 0:02:56.4]} 8. h3 {[%clk
0:02:53.3]} 8... b5 {[%clk 0:02:55.4]} 9. g4 {[%clk 0:02:53.7]} 9... O-O {[%clk
0:02:50.7]} 10. O-O {[%clk 0:02:42.9]} 10... b4 {[%clk 0:02:48.3]} 11. Ne2
{[%clk 0:02:42.5]} 11... a5 {[%clk 0:02:45.5]} 12. Qe1 {[%clk 0:02:36.2]} 12...
Bb7 {[%clk 0:02:44.5]} 13. Qh4 {[%clk 0:02:34.4]} 13... c4 {[%clk 0:02:38.5]}
14. f5 {[%clk 0:02:33.1]} 14... cxd3 {[%clk 0:02:37.1]} 15. cxd3 {[%clk
0:02:33.2]} 15... Ne5 {[%clk 0:02:29.6]} 16. g5 {[%clk 0:01:36.2]} 16... Nh5
{[%clk 0:02:27.1]} 17. Nxe5 {[%clk 0:01:08.9]} 17... dxe5 {[%clk 0:02:28]} 18.
Rf3 {[%clk 0:00:51.8]} 18... f6 {[%clk 0:02:11.6]} 19. fxg6 {[%clk 0:00:43.7]}
19... hxg6 {[%clk 0:02:11]} 20. Bd2 {[%clk 0:00:25.1]} 20... f5 {[%clk
0:02:04.8]} 21. Rxf5 {[%clk 0:00:21.3]} 21... Rxf5 {[%clk 0:01:51.5]} 22. exf5
{[%clk 0:00:21.4]} 22... Bxg2 {[%clk 0:01:52.4]} 23. fxg6 {[%clk 0:00:16.6]}
23... Bf3 {[%clk 0:01:43.2]} 24. Ng3 {[%clk 0:00:15.4]} 24... Qd4+ {[%clk
0:01:37.1]} 25. Kh2 {[%clk 0:00:11.6]} 25... Qxh4 {[%clk 0:01:36.8]} 0-1

[Event "Early-Titled-Tuesday-Blitz-June-18-2024"]
[Site "Chess.com"]
[Date "2024.06.18"]
[Round "7"]
[White "alexrustemov"]
[Black "Msb2"]
[Result "0-1"]
[WhiteElo "2863"]
[BlackElo "3058"]
[TimeControl "180+1"]
[EndTime "9:18:11 PDT"]
[Termination "Msb2 won by resignation"]

1. d4 {[%clk 0:03:00.9]} 1... d5 {[%clk 0:03:00.2]} 2. c4 {[%clk 0:03:01.1]}
2... e6 {[%clk 0:03:00.9]} 3. cxd5 {[%clk 0:03:00.9]} 3... exd5 {[%clk
0:03:01.8]} 4. Nc3 {[%clk 0:03:01]} 4... Bb4 {[%clk 0:03:02.5]} 5. Bf4 {[%clk
0:02:56]} 5... c5 {[%clk 0:03:02.6]} 6. e3 {[%clk 0:02:54.7]} 6... c4 {[%clk
0:03:03.1]} 7. Nf3 {[%clk 0:02:47]} 7... Nc6 {[%clk 0:03:03.4]} 8. Be2 {[%clk
0:02:45.5]} 8... Nf6 {[%clk 0:03:03.8]} 9. O-O {[%clk 0:02:45]} 9... O-O {[%clk
0:03:04.4]} 10. Ne5 {[%clk 0:02:43.4]} 10... Bf5 {[%clk 0:03:03.4]} 11. Rc1
{[%clk 0:02:24.7]} 11... Bxc3 {[%clk 0:02:59.6]} 12. Nxc6 {[%clk 0:02:14.5]}
12... bxc6 {[%clk 0:02:59.5]} 13. Rxc3 {[%clk 0:02:14]} 13... Qa5 {[%clk
0:02:51.5]} 14. Qa1 {[%clk 0:02:04.8]} 14... Rfe8 {[%clk 0:02:35.7]} 15. h3
{[%clk 0:01:58.1]} 15... h6 {[%clk 0:02:32.7]} 16. Rfc1 {[%clk 0:01:56.5]} 16...
Ne4 {[%clk 0:02:25.8]} 17. R3c2 {[%clk 0:01:49.8]} 17... Ng5 {[%clk 0:02:21.9]}
18. Rc3 {[%clk 0:01:47.4]} 18... Ne6 {[%clk 0:02:22.4]} 19. Be5 {[%clk
0:01:18.7]} 19... f6 {[%clk 0:02:21.6]} 20. Bg3 {[%clk 0:01:17]} 20... Nxd4
{[%clk 0:02:20.1]} 21. Bxc4 {[%clk 0:01:07.9]} 21... Nc2 {[%clk 0:02:15.1]} 22.
R3xc2 {[%clk 0:00:52.2]} 22... Bxc2 {[%clk 0:02:16]} 23. Bxd5+ {[%clk
0:00:47.9]} 23... cxd5 {[%clk 0:02:08.5]} 24. Rxc2 {[%clk 0:00:48.2]} 24... Rac8
{[%clk 0:02:09.2]} 25. Rxc8 {[%clk 0:00:16.4]} 25... Rxc8 {[%clk 0:02:10.1]} 26.
Kh2 {[%clk 0:00:16.4]} 26... Qd2 {[%clk 0:02:07.9]} 27. a4 {[%clk 0:00:11.9]}
27... Rc1 {[%clk 0:02:01.3]} 28. Qa3 {[%clk 0:00:11.6]} 28... Qe1 {[%clk
0:01:58.9]} 29. Bh4 {[%clk 0:00:09.2]} 29... Qh1+ {[%clk 0:01:55.4]} 30. Kg3
{[%clk 0:00:09.1]} 30... Rg1 {[%clk 0:01:56.3]} 0-1

[Event "Early-Titled-Tuesday-Blitz-June-18-2024"]
[Site "Chess.com"]
[Date "2024.06.18"]
[Round "7"]
[White "esskeettit"]
[Black "Adrian-thorsen"]
[Result "1-0"]
[WhiteElo "2507"]
[BlackElo "2326"]
[TimeControl "180+1"]
[EndTime "9:18:15 PDT"]
[Termination "esskeettit won by resignation"]

1. d4 {[%clk 0:03:00.9]} 1... e6 {[%clk 0:01:55.8]} 2. c4 {[%clk 0:02:58.3]}
2... b6 {[%clk 0:01:54.5]} 3. Nf3 {[%clk 0:02:55.5]} 3... Bb7 {[%clk 0:01:54.6]}
4. a3 {[%clk 0:02:55.9]} 4... f5 {[%clk 0:01:53.8]} 5. Nc3 {[%clk 0:02:55.8]}
5... Nf6 {[%clk 0:01:52.4]} 6. e3 {[%clk 0:02:44.9]} 6... Be7 {[%clk 0:01:51.9]}
7. Be2 {[%clk 0:02:44.8]} 7... O-O {[%clk 0:01:49.8]} 8. O-O {[%clk 0:02:44.8]}
8... d6 {[%clk 0:01:50.1]} 9. b4 {[%clk 0:02:44.5]} 9... Qe8 {[%clk 0:01:50.2]}
10. Bb2 {[%clk 0:02:44.1]} 10... Qh5 {[%clk 0:01:48.3]} 11. d5 {[%clk
0:02:25.7]} 11... exd5 {[%clk 0:01:33]} 12. cxd5 {[%clk 0:02:15.8]} 12... Qg6
{[%clk 0:01:20.1]} 13. Nd4 {[%clk 0:02:01.2]} 13... Ne4 {[%clk 0:01:18.1]} 14.
Ne6 {[%clk 0:01:44.1]} 14... Rc8 {[%clk 0:01:14.9]} 15. Nxe4 {[%clk 0:01:20.9]}
15... fxe4 {[%clk 0:01:15.8]} 16. Bh5 {[%clk 0:01:17.6]} 16... Qh6 {[%clk
0:01:07.7]} 17. Bxg7 {[%clk 0:01:16.9]} 17... Qxg7 {[%clk 0:00:58.9]} 18. Nxg7
{[%clk 0:01:17.8]} 18... Kxg7 {[%clk 0:00:59.8]} 19. Qg4+ {[%clk 0:01:11.5]}
19... Kh8 {[%clk 0:00:54.5]} 20. Qxe4 {[%clk 0:00:59.1]} 20... Bf6 {[%clk
0:00:53.5]} 21. Rac1 {[%clk 0:00:59.2]} 21... Nd7 {[%clk 0:00:53.9]} 22. Bg4
{[%clk 0:00:57.9]} 22... Rd8 {[%clk 0:00:52]} 23. Bxd7 {[%clk 0:00:54]} 23...
Rxd7 {[%clk 0:00:52.3]} 24. Qe6 {[%clk 0:00:54.6]} 1-0

[Event "Early-Titled-Tuesday-Blitz-June-18-2024"]
[Site "Chess.com"]
[Date "2024.06.18"]
[Round "7"]
[White "Chessgod9oninsta"]
[Black "HajiyevKanan"]
[Result "0-1"]
[WhiteElo "2736"]
[BlackElo "2535"]
[TimeControl "180+1"]
[EndTime "9:18:16 PDT"]
[Termination "HajiyevKanan won by resignation"]

1. b3 {[%clk 0:03:00.9]} 1... a6 {[%clk 0:03:00.9]} 2. Bb2 {[%clk 0:03:01.8]}
2... b5 {[%clk 0:03:00]} 3. Nf3 {[%clk 0:02:55]} 3... Bb7 {[%clk 0:03:00.1]} 4.
g3 {[%clk 0:02:55.6]} 4... Nf6 {[%clk 0:03:00.7]} 5. Bg2 {[%clk 0:02:55.9]} 5...
e6 {[%clk 0:03:00.9]} 6. O-O {[%clk 0:02:56.4]} 6... Be7 {[%clk 0:03:01.5]} 7.
d3 {[%clk 0:02:55.6]} 7... O-O {[%clk 0:03:01.6]} 8. Nbd2 {[%clk 0:02:56.3]}
8... c5 {[%clk 0:03:01.4]} 9. e4 {[%clk 0:02:56]} 9... d5 {[%clk 0:02:59.8]} 10.
Re1 {[%clk 0:02:55]} 10... dxe4 {[%clk 0:02:58.9]} 11. Nxe4 {[%clk 0:02:54.3]}
11... Nc6 {[%clk 0:02:56.3]} 12. Bxf6 {[%clk 0:02:47.7]} 12... Bxf6 {[%clk
0:02:57.2]} 13. Nxc5 {[%clk 0:02:47.8]} 13... Bxa1 {[%clk 0:02:48.2]} 14. Nxb7
{[%clk 0:02:46.3]} 14... Qc7 {[%clk 0:02:38.7]} 15. Qxa1 {[%clk 0:02:45.4]}
15... Nb4 {[%clk 0:02:25.5]} 16. Nd4 {[%clk 0:02:28.5]} 16... Rab8 {[%clk
0:02:17.4]} 17. c3 {[%clk 0:02:06.7]} 17... Nxd3 {[%clk 0:01:09.5]} 18. Re3
{[%clk 0:02:02.4]} 18... Ne5 {[%clk 0:01:07.8]} 19. Na5 {[%clk 0:02:00.5]} 19...
Ng4 {[%clk 0:01:04.9]} 20. Re4 {[%clk 0:01:51.8]} 20... Nf6 {[%clk 0:01:04.9]}
21. Nac6 {[%clk 0:01:51]} 21... Nxe4 {[%clk 0:00:57.7]} 22. Nxb8 {[%clk
0:01:49.1]} 22... Nxc3 {[%clk 0:00:41]} 23. Nxa6 {[%clk 0:01:29.1]} 23... Qc8
{[%clk 0:00:37.4]} 24. Nb4 {[%clk 0:01:28.3]} 24... Qc5 {[%clk 0:00:33.5]} 25.
Nd3 {[%clk 0:01:25]} 25... Qxd4 {[%clk 0:00:32.5]} 26. Qf1 {[%clk 0:01:21.8]}
26... Rd8 {[%clk 0:00:30.1]} 27. h4 {[%clk 0:01:12.9]} 27... Qxd3 {[%clk
0:00:28.9]} 0-1